Cogmind - Beta 9.2 @@@ ROGUE MODE // 2019.11.16 @ 14:39:04 Player: Pimski Result: Destroyed by 8R-AWN with 8R-AWN's Boregun Performance ------------- Evolutions (0) 0 Regions Visited (3) 600 Robots Destroyed (49) 245 Value Destroyed (877) 877 Prototype IDs (25) 500 Alien Tech Used (0) 0 Bonus (-267) -267 TOTAL SCORE: 1955 Bonus ------- High Alert Combat Kills 38 Aligned with FarCom 300 Friendly Fire -605 Cogmind --------- Core Integrity 0/250 Matter 300/300 Energy 88/100 System Corruption 0% Temperature Cool (0) Movement Treading (200) Ox2 Location -10/Exiles Parts ------- > --- POWER (1) -------- (None) > --- PROPULSION (2) --- Light Treads > --- UTILITY (2) ------ Large Storage Unit High-capacity Storage Unit > --- WEAPON (2) ------- Assault Rifle Light Assault Rifle > --- INVENTORY (18) --- Medium Storage Unit Experimental Sensor Array Transport Network Coupler Hacking Suite Hacking Suite Guided Plasma Cannon Firepult Assault Rifle Assault Rifle Assault Rifle Light Assault Rifle Grenade Launcher Peak State ------------ > --- POWER ------------ Light Nuclear Core > --- PROPULSION ------- Light Treads Light Treads > --- UTILITY ---------- Large Storage Unit High-capacity Storage Unit > --- WEAPON ----------- Assault Rifle Light Assault Rifle > --- INVENTORY -------- Light Treads Light Treads Medium Storage Unit High-capacity Matter Pod Experimental Sensor Array Transport Network Coupler Hacking Suite Hacking Suite Guided Plasma Cannon Firepult Assault Rifle Assault Rifle Assault Rifle Assault Rifle Assault Rifle Light Assault Rifle Grenade Launcher [Rating: 14] Favorites ----------- Power Light Nuclear Core Engine Light Ion Engine Power Core Light Nuclear Core Propulsion Light Treads Treads Light Treads Leg Aluminum Leg Utility High-capacity Storage Unit Storage High-capacity Storage Unit Weapon Assault Rifle Energy Gun Small Laser Ballistic Gun Assault Rifle Ballistic Cannon Light Cannon Launcher Grenade Launcher Build | -11 -10 -10 -10 ------- Run | Scr Mat Min Exi Slots Evolved . | . . . . Power . | . . . . Propulsion . | . . . . Utility . | . . . . Weapon . | . . . . Parts Attached 22 | 1 14 1 6 Power 2 | . 2 . . Engine 1 | . 1 . . Core 1 | . 1 . . Reactor . | . . . . Propulsion 6 | . 4 . 2 Treads 6 | . 4 . 2 Leg . | . . . . Wheel . | . . . . Hover . | . . . . Flight . | . . . . Utility 3 | 1 2 . . Device . | . . . . Storage 3 | 1 2 . . Processor . | . . . . Hackware . | . . . . Protection . | . . . . Artifact . | . . . . Weapon 11 | . 6 1 4 Energy Gun 1 | . 1 . . Energy Cannon . | . . . . Ballistic Gun 8 | . 4 1 3 Ballistic Cannon 1 | . 1 . . Launcher 1 | . . . 1 Special Weapon . | . . . . Impact Weapon . | . . . . Slashing Weapon . | . . . . Piercing Weapon . | . . . . Special Melee Weapon . | . . . . Unidentified Prototypes . | . . . . Parts Lost 10 | . 4 . 6 Power 1 | . . . 1 Propulsion 5 | . 2 . 3 Utility . | . . . . Weapon 4 | . 2 . 2 Highest Loss Streak 6 | . 2 . 6 Average Slot Usage (%) 99 | . 100 100 99 Engine 3 | . 5 . . Core 10 | . 8 14 13 Treads 27 | . 27 28 28 Storage 28 | . 28 28 28 Energy Gun 3 | . 6 . . Ballistic Gun 24 | . 21 28 27 Naked Turns . | . . . . Heaviest Build 56 | 14 56 56 56 Greatest Support 40 | 20 40 40 40 Greatest Overweight (x) 2 | . 2 1 1 Average Overweight (x) . | . . 1 1 Largest Inventory Capacity 18 | 8 18 18 18 Average Capacity 15 | 6 12 18 18 Most Carried 18 | 7 18 18 18 Average Carried 14 | 6 12 17 17 Final Capacity 18 | 8 18 18 18 Final Carried 18 | 7 18 18 13 Class Distribution -------------------- 100% | Mutant Dominant Class ---------------- Mutant | -10/Materials Mutant | -10/Mines Mutant | -10/Exiles Resources | -11 -10 -10 -10 ----------- Run | Scr Mat Min Exi Matter Collected 1288 | 210 882 8 188 Remotely . | . . . . Salvage Created 1452 | 74 1290 50 38 Parts 82 | 4 75 3 . Haulers Intercepted 2 | . 2 . . Recyclers Shooed 8 | . 8 . . Parts Field Recycled . | . . . . Retrieved Matter . | . . . . Parts Self-Destructed . | . . . . Prevented . | . . . . Kills | -11 -10 -10 -10 ------- Run | Scr Mat Min Exi Combat Hostiles Destroyed 30 | . 26 1 3 Guns 28 | . 26 1 1 AOE 2 | . . . 2 Classes Destroyed 10 | 1 8 . 1 Worker 1 | . 1 . . Builder 2 | . 2 . . Tunneler 1 | . 1 . . Hauler 2 | . 2 . . Recycler 4 | 1 3 . . Operator 3 | . 3 . . Watcher 2 | . 2 . . Swarmer 9 | . 9 . . Grunt 18 | . 17 1 . Assembled 7 | . . . 7 Best Kill Streak 5 | 1 5 1 3 Combat Bots Only 4 | . 4 1 3 Max Kills in Single Turn 4 | 1 1 1 4 Gunslinging . | . . . . Exploded 2 | . . . 2 Melee . | . . . . Uniques/NPCs Destroyed . | . . . . Combat | -11 -10 -10 -10 -------- Run | Scr Mat Min Exi Damage Taken 1586 | . 961 48 577 Core 270 | . 140 15 115 Absorbed by Shields . | . . . . Core Remaining (%) 100 | 100 . . . Volleys Fired 142 | 3 116 2 21 Largest 2 | 2 2 2 2 Hottest 90 | 90 90 40 40 Shots Fired 281 | 6 231 4 40 Gun 277 | 6 229 4 38 Cannon 2 | . 2 . . Launcher 2 | . . . 2 Special . | . . . . Kinetic 198 | . 156 4 38 Thermal 81 | 6 75 . . Explosive 2 | . . . 2 Electromagnetic . | . . . . Robot Hit Streak 13 | 6 13 4 12 Robot Miss Streak 3 | . 3 . 2 Penetration Max . | . . . . Secondary Targets 3 | . 3 . . Max Gunslinging Chain 1 | . 1 . . Shots Hit Robots 214 | 6 173 4 31 Core Hits 89 | 2 69 2 16 Critical Hits 2 | . 1 . 1 Critical Kills . | . . . . Critical Parts Destroyed . | . . . . Melee Attacks . | . . . . Impact . | . . . . Slashing . | . . . . Piercing . | . . . . Sneak Attacks . | . . . . Combat Hostiles . | . . . . Follow-up Attacks . | . . . . Damage Inflicted 2771 | 70 2065 41 595 Guns 2434 | 70 1987 40 337 Cannons . | . . . . Explosions 258 | . . . 258 Melee . | . . . . Ramming 79 | . 78 1 . Kinetic 1716 | . 1339 40 337 Thermal 718 | 70 648 . . Explosive 258 | . . . 258 Electromagnetic . | . . . . Impact . | . . . . Slashing . | . . . . Piercing . | . . . . Highest Corruption . | . . . . Average Corruption . | . . . . Corruption Purged . | . . . . Overload Shots . | . . . . Overflow Damage . | . . . . Projectiles . | . . . . Explosions . | . . . . Melee . | . . . . Knockbacks 1 | . 1 . . Impact 1 | . 1 . . Kinetic . | . . . . Secondary . | . . . . Self-Inflicted Damage . | . . . . Shots . | . . . . Rammed 17 | . 16 1 . Targets Rammed 19 | . 18 1 . Kicked . | . . . . Crushed 2 | . 2 . . Highest Temperature 392 | 72 392 10 . Average Temperature 77 | 34 81 7 . Received Heat Transfer 429 | . 402 27 . Effects 2 | . 2 . . Shutdowns 1 | . 1 . . Short Circuit 1 | . 1 . . Siege Activations . | . . . . Robots Corrupted . | . . . . Combat Hostiles . | . . . . Parts Fried . | . . . . Impact Corruptions . | . . . . Robots Melted . | . . . . Combat Hostiles . | . . . . Parts Melted . | . . . . Heat Transferred 1767 | 186 1581 . . Parts Sabotaged . | . . . . Parts Stolen . | . . . . Parts Stripped . | . . . . Power Chain Reactions . | . . . . Missiles Intercepted . | . . . . Alert | -11 -10 -10 -10 ------- Run | Scr Mat Min Exi Peak Influence 476 | 5 476 133 . Average Influence 239 | 3 289 87 . Maximum Alert Level 2 | . 2 . . Low Security (%) 40 | 100 20 100 . Level 1 51 | . 67 . . Level 2 8 | . 11 . . Level 3 . | . . . . Level 4 . | . . . . Level 5 . | . . . . High Security . | . . . . Max Security . | . . . . Squads Dispatched 4 | . 4 . . Investigation 1 | . 1 . . Extermination . | . . . . Reinforcement 3 | . 3 . . Assault . | . . . . Garrison . | . . . . Intercept . | . . . . Construction Impeded . | . . . . Haulers Reinforced . | . . . . Stealth | -11 -10 -10 -10 --------- Run | Scr Mat Min Exi Distress Signals 2 | . 2 . . Communications Jammed . | . . . . Distress Signals . | . . . . Times Spotted 56 | . 50 2 4 Peak Tracking Total 6 | . 6 2 5 Tactical Retreats 8 | . 7 1 . Traps | -11 -10 -10 -10 ------- Run | Scr Mat Min Exi Traps Triggered 1 | . 1 . . Indirectly . | . . . . Trap Hack Attempts . | . . . . Triggered . | . . . . Disarmed . | . . . . Reprogrammed . | . . . . Reused . | . . . . Traps Extracted . | . . . . Installed . | . . . . Triggered . | . . . . Machines | -11 -10 -10 -10 ---------- Run | Scr Mat Min Exi Machines Disabled 5 | . 1 . 4 Max in Single Turn 1 | . 1 . 1 Machines Sabotaged . | . . . . Garrisons Compromised . | . . . . Overloaded Fab Kills . | . . . . Fab Network Shutdowns . | . . . . Hacking | -11 -10 -10 -10 --------- Run | Scr Mat Min Exi Machines Accessed 8 | . 6 . 2 Terminals 5 | . 5 . . Fabricators . | . . . . Repair Stations . | . . . . Recycling Units 1 | . 1 . . Scanalyzers . | . . . . Garrison Access . | . . . . Total Hacks 16 | . 14 . 2 Successful 7 | . 5 . 2 Failed 9 | . 9 . . Catastrophic . | . . . . Database Lockouts . | . . . . Manual 14 | . 13 . 1 Terminals 13 | . 13 . . Fabricators . | . . . . Repair Stations . | . . . . Recycling Units 1 | . 1 . . Scanalyzers . | . . . . Garrison Access . | . . . . Terminal Hacks 5 | . 3 . 2 Record 1 | . . . 1 Prototype ID Bank 2 | . 2 . . Branch Access Points 1 | . 1 . . EX-Prototype ID Bank 1 | . . . 1 Fabricator Hacks . | . . . . Repair Station Hacks . | . . . . Recycling Unit Hacks 1 | . 1 . . Retrieve Components 1 | . 1 . . Scanalyzer . | . . . . Garrison Access Hacks . | . . . . Unauthorized Hacks 3 | . 3 . . Terminals 1 | . 1 . . Botnet 1 | . 1 . . Fabricators . | . . . . Repair Stations . | . . . . Recycling Units . | . . . . Scanalyzers . | . . . . Garrison Access . | . . . . Data Cores Recovered 1 | . 1 . . Used . | . . . . Hacking Detections 5 | . 5 . . Full Trace Events . | . . . . Feedback Events . | . . . . Feedback Blocked . | . . . . Robot Schematics Acquired . | . . . . Robots Built . | . . . . Matter . | . . . . Time . | . . . . Total Robot Build Rating . | . . . . Part Schematics Acquired . | . . . . Parts Built . | . . . . Matter . | . . . . Time . | . . . . Total Part Build Rating . | . . . . Parts Repaired . | . . . . Time . | . . . . Parts Recycled . | . . . . Recycled Matter . | . . . . Retrieved Matter . | . . . . Retrieved Components 2 | . 2 . . Parts Scanalyzed . | . . . . Part Schematics Acquired . | . . . . Parts Damaged . | . . . . Bothacking | -11 -10 -10 -10 ------------ Run | Scr Mat Min Exi Used RIF Installer . | . . . . Robots Hacked . | . . . . Non-combat . | . . . . Combat . | . . . . Robot Hacks Applied . | . . . . Relay Couplers Released . | . . . . Robots Rewired . | . . . . Allies Hacked . | . . . . Hacks Repelled . | . . . . Allies | -11 -10 -10 -10 -------- Run | Scr Mat Min Exi Total Allies . | . . . . Largest Group . | . . . . Highest-Rated Group . | . . . . Highest-Rated Ally . | . . . . Total Orders . | . . . . Ally Attacks . | . . . . Total Damage . | . . . . Kills . | . . . . Allies Corrupted . | . . . . Allies Melted . | . . . . Intel | -11 -10 -10 -10 ------- Run | Scr Mat Min Exi Robot Analysis Total . | . . . . Derelict Logs Recovered 1 | . . 1 . Drone Launches . | . . . . Drone Recoveries . | . . . . Exploration | -11 -10 -10 -10 ------------- Run | Scr Mat Min Exi Turns Passed 3373 | 26 1788 547 1012 Spaces Moved 1530 | 13 729 271 517 Core . | . . . . Treads 1510 | . 722 271 517 Legs 20 | 13 7 . . Wheels . | . . . . Hover . | . . . . Flight . | . . . . Fastest Speed 120 | 120 120 180 180 Average Speed 176 | 120 174 180 180 Slowest Speed 200 | 120 200 180 180 Overloaded Moves . | . . . . Propulsion Burnouts . | . . . . Robots Hopped . | . . . . Cave-ins Triggered . | . . . . Exploration Rate (%) 57 | 2 91 68 68 Regions Visited 3 Branch Regions 2 Pre-discovered Areas 2 | . . 1 1 Known Exits Taken 1 | . 1 . . Unknown Exits Taken 2 | 1 . 1 . Scrap Searched 2 | . . 2 . Spaces Dug . | . . . . Terrain Destroyed 6 | . . . 6 Melee . | . . . . Projectile . | . . . . AOE 6 | . . . 6 Actions | -11 -10 -10 -10 --------- Run | Scr Mat Min Exi Total 1930 | 17 1020 327 566 Wait 141 | . 92 49 . Move 1527 | 12 728 270 517 Hop . | . . . . Pick Up 43 | 1 31 1 10 Fast Attach 3 | 1 2 . . Attach 10 | . 5 1 4 Detach . | . . . . Swap 9 | . 7 . 2 Drop 34 | . 21 1 12 Fire 142 | 3 116 2 21 Melee . | . . . . Ram . | . . . . Kick . | . . . . Crush 19 | . 18 1 . Escape Stasis . | . . . . Rewire 2 | . . 2 . Trap . | . . . . Miscellaneous . | . . . . Route ------- -11/Scrapyard -10/Materials (discovered 4 exits: [*Mat x3] / *Min) -10/Mines -10/Exiles (discovered 1 exit: [*Min]) History --------- Turn | Location | Event 10 | -11/Scrapyard | Discovered new exit (range 3) 27 | -11/Scrapyard | Entered Materials 314 | -10/Materials | Build established: Mutant 1000 | -10/Materials | Discovered new exit (range 13) 1008 | -10/Materials | Core integrity fell below 50% 1157 | -10/Materials | Discovered new exit (range 15) 1353 | -10/Materials | Discovered new exit (range 6) 1370 | -10/Materials | Identified exit to Mines 1815 | -10/Materials | Entered Mines 1816 | -10/Mines | Assembled infested the area 2232 | -10/Mines | Learned location of Storage (-9) 2259 | -10/Mines | Found a damaged Exp. Sensor Array with a note attached 2268 | -10/Mines | Found Prototype Device 2355 | -10/Mines | Discovered new exit (range 5) 2362 | -10/Mines | Entered Exiles 2391 | -10/Exiles | Discovered new exit (range 15) 2411 | -10/Exiles | Met 8R-AWN 2436 | -10/Exiles | Met EX-HEX 2519 | -10/Exiles | Met EX-DEC 2550 | -10/Exiles | Learned location of Zion (-6) 2674 | -10/Exiles | Met EX-BIN 2695 | -10/Exiles | Aligned with FarCom system 2697 | -10/Exiles | Given EX-Vault access code 2739 | -10/Exiles | Opened EX-Vault 2750 | -10/Exiles | Found Gui. Plasma Cannon 2757 | -10/Exiles | Found Firepult 2800 | -10/Exiles | Warned to stay clear of 0b10 Research branches 3312 | -10/Exiles | Attacked by the Exiles 3356 | -10/Exiles | Core integrity fell below 20% 3374 | -10/Exiles | Destroyed by 8R-AWN with 8R-AWN's Boregun Last Messages --------------- 03356_ Extracted 4 matter. 03357_ Penetrated by HV Slug. 03359_ Extracted 4 matter. 03359_ Penetrated by HV Slug. 03359_ HV Slug penetrates Wall. 03361_ Extracted 4 matter. 03361_ Penetrated by HV Slug. 03364_ Extracted 4 matter. 03364_ HV Slug penetrates Wall. 03366_ Penetrated by HV Slug. 03367_ Extracted 4 matter. 03370_ Penetrated by HV Slug. 03370_ Critical hit. 03370_ Lgt. Treads destroyed. 03370_ Penetrated by HV Slug. 03370_ Critical hit. 03370_ Lgt. Treads destroyed. 03373_ Extracted 10 matter. 03374_ Extracted 4 matter. 03374_ Penetrated by HV Slug. Map ----- +----------------------------------------------------+ | """#???????????????????????????????????? | | """#???????????????????????????????????? | | """#???????????????????????????????????? | | """#???????????????????????????????????? | | """"???????????????????????????????????? | | """#???????????????????????????????????? | | "X" """????????????????????????????????????? | | """ #???????????????????????????????????? | | """""""""#???????????????????????????????????? | | ###########???????????????????????????????????? | | #?????????????????????????????????????????????? | | #?????????????????????????????????????????????? | | ##????????????????????????????????????????????? | | ##???###########?????????????????????????????? | | #####"""" """"##????????????????????????????? | | " """ """"##???????????????????????????? | | " " #???????????????????????????? | | """#???????????????????????????? | | a"#???????????#####???????????? | | " "##?????????##" #???????????? | | "###???????#" #???????????? | | " ""#??????##" ##??????????? | | """ "#????### ###????????# | | ####""" ###??# ########## | | ???##""" ;#### #""""## | | ????#"""" @;;# | | ???##"" !g ## | | ####"""" #### | | #""" ""#?#"""""#### | | "" #"""##?#######??#### | | ######??????????????### | | ##?????????????????????? | | " ##??????????????????????? | | "" "" % "#???????????????????????? | | ##""" " " ""#" % "##???????????????????????? | | ######""" """## ##????????????????????????? | | #????###""""#### # # #?????????????????????????? | | ####???######??#### ##??????????????????????????? | | "!#??????????????#?????????????????????????????? | | !#????????????????????????????????????????????? | | "#????????????????????????????????????????????? | | ""!"#????????????????????????????????????????????? | | #####????????????????????????????????????????????? | | ?????????????????????????????????????????????????? | | ?????????????????????????????????????????????????? | | ?????????????????????????????????????????????????? | | ?????????????????????????????????????????????????? | | ?????????????????????????????????????????????????? | | ?????????????????????????????????????????????????? | | ?????????????????????????????????????????????????? | +----------------------------------------------------+ Best States ------------- Heat Dissipation 25 Energy Generation 14 Energy Capacity 160 Matter Stores 300 Matter Capacity 300 Sight Range 16 Terrain Scan Density 10 Evasion (%) 40 Recoil Reduction 2 Item Schematics ----------------- None Robot Schematics ------------------ None Fabricated ------------ Nothing Alien Tech Used ----------------- None Achievements -------------- None Challenges ------------ None Game ------ Seed SupersonicHoverCorpse Manual? 0 Play Time 00:18:57 Cumulative 601.9 hours Start 2019.11.16 @ 14:23:46 End 2019.11.16 @ 14:39:04 Sessions 1 Manual Loads 0 Difficulty Rogue Special Mode None Game No. 387 Rogue 387 Adventurer 0 Explorer 0 Win Type - Total 99 Types 66/6/7/10/5/1/4 Lore% 96 Gallery% 94 Achievement% 80 Wizard Run 0 Options --------- ASCII 0 Keyboard 0 Movement Numpad Keybinds 0 Fullscreen 2 Font 18/SmallcapsGlow Map View 76x50 Tactical HUD 1 Map Filters NONE Filters NONE Steam 1 RUN: f79d1b6a-07a4-4a22-9842-aba7a87744e4